fUSD/lending_fUSD_20260506
["ID","MTS","AMOUNT","RATE_DAILY","PERIOD"]
[421678001,1778039448000,-356.97,0.00035616,2]
[421677997,1778039448000,-500.0,0.00035616,7]
[421677999,1778039448000,-500.0,0.00035616,7]
[421677996,1778039448000,-500.0,0.00035616,7]
[421677998,1778039448000,-500.0,0.00035616,7]
[421678003,1778039448000,-3536.0,0.00035632,2]
[421678000,1778039448000,-500.0,0.00035616,5]
[421678005,1778039448000,-925.0,0.00035632,2]
[421678002,1778039448000,-624.0,0.00035632,2]
[421677981,1778039448000,-500.0,0.00035616,7]
[421678004,1778039448000,-1352.0,0.00035632,2]
[421677991,1778039448000,-500.0,0.00035616,7]
[421677980,1778039448000,-500.0,0.00035616,7]
[421677958,1778039448000,-164.56,0.0003524,60]
[421677979,1778039448000,-500.0,0.00035616,7]
[421677995,1778039448000,-500.0,0.00035616,7]
[421677951,1778039448000,-5000.0,0.00035037,2]
[421677950,1778039448000,-5000.0,0.00035037,2]
[421677953,1778039448000,-151.0,0.00035213,14]
[421677964,1778039448000,-362.0,0.00035278,30]
[421677963,1778039448000,-585.0,0.00035265,30]
[421677956,1778039448000,-150.0,0.00035216,2]
[421677952,1778039448000,-5000.0,0.00035037,2]
[421677955,1778039448000,-1782.94022466,0.00035216,2]
[421677957,1778039448000,-965.57076518,0.00035216,2]
[421677954,1778039448000,-150.0,0.00035216,2]
[421677962,1778039448000,-155.0,0.00035265,30]
[421677977,1778039448000,-500.0,0.00035616,7]
[421677961,1778039448000,-178.21,0.0003524,60]
[421677959,1778039448000,-164.56,0.0003524,60]
[421677966,1778039448000,-277.0,0.00035278,30]
[421677965,1778039448000,-177.0,0.00035278,30]
[421677967,1778039448000,-359.0,0.00035278,30]
[421677968,1778039448000,-1073.0,0.00035279,30]
[421677972,1778039448000,-1500.0,0.000353,7]
[421677971,1778039448000,-483.0,0.00035279,30]
[421677969,1778039448000,-347.0,0.00035279,30]
[421677970,1778039448000,-153.0,0.00035279,30]
[421677974,1778039448000,-11908.0,0.00035531,2]
[421677973,1778039448000,-150.0,0.00035315,120]
[421677975,1778039448000,-500.0,0.00035616,5]
[421677960,1778039448000,-164.55,0.0003524,60]
[421678006,1778039448000,-1268.0,0.00035632,2]
[421678017,1778039448000,-274.95850481,0.00036,120]
[421678048,1778039448000,-2236.95670848,0.00036566,7]
[421678035,1778039448000,-362.0,0.00036278,30]
[421678032,1778039448000,-268.45941338,0.00036174,3]
[421678038,1778039448000,-359.0,0.00036278,30]
[421678041,1778039448000,-153.0,0.00036279,30]
[421678046,1778039448000,-2080.17592889,0.00036566,7]
[421678044,1778039448000,-504.0,0.00036466,12]
[421678047,1778039448000,-2157.14243826,0.00036566,7]
[421678055,1778039448000,-2884.75459676,0.00036566,7]
[421678053,1778039448000,-2682.57183977,0.00036566,7]
[421678052,1778039448000,-2586.85809042,0.00036566,7]
[421678056,1778039448000,-2991.49051684,0.00036566,7]
[421678049,1778039448000,-2319.72410669,0.00036566,7]
[421678045,1778039448000,-444.74,0.00036499,2]
[421678050,1778039448000,-2405.55389864,0.00036566,7]
[421678051,1778039448000,-2494.55939289,0.00036566,7]
[421678054,1778039448000,-2781.82699784,0.00036566,7]
[421678058,1778039448000,-631.75654827,0.00036669,120]
[421678057,1778039448000,-15847.2472871,0.00036669,120]
[421678063,1778039448000,-336.70213556,0.00036815,2]
[421678064,1778039448000,-136769.3035158,0.000369,2]
[421678062,1778039448000,-1000.0,0.00036712,5]
[421678061,1778039448000,-150.0,0.00036712,30]
[421678060,1778039448000,-4000.0,0.00036712,60]
[421678059,1778039448000,-2127.42212672,0.00036669,120]
[421678007,1778039448000,-417.0,0.00035632,2]
[421678039,1778039448000,-1073.0,0.00036279,30]
[421678036,1778039448000,-177.0,0.00036278,30]
[421678042,1778039448000,-483.0,0.00036279,30]
[421678040,1778039448000,-347.0,0.00036279,30]
[421678011,1778039448000,-152.0,0.00035694,4]
[421678018,1778039448000,-699.86347297,0.00036,120]
[421678009,1778039448000,-3625.0,0.00035632,2]
[421678019,1778039448000,-174.56512609,0.00036,120]
[421678008,1778039448000,-150.0,0.00035632,2]
[421678015,1778039448000,-310.0,0.00035973,2]
[421678016,1778039448000,-236.59489558,0.00036,120]
[421678012,1778039448000,-171.82,0.000357,30]
[421678037,1778039448000,-277.0,0.00036278,30]
[421678013,1778039448000,-78194.19,0.000357,7]
[421678014,1778039448000,-150.0,0.00035899,2]
[421678020,1778039448000,-1150.74582531,0.00036,120]
[421678025,1778039448000,-500.0,0.00036174,3]
[421678031,1778039448000,-500.0,0.00036174,3]
[421678010,1778039448000,-504.0,0.00035688,11]
[421678021,1778039448000,-911.0582784,0.00036,120]
[421678024,1778039448000,-1965.0,0.00036153,30]
[421678026,1778039448000,-500.0,0.00036174,3]
[421678023,1778039448000,-4000.0,0.00036137,60]
[421678027,1778039448000,-500.0,0.00036174,3]
[421678028,1778039448000,-268.45941338,0.00036174,3]
[421678030,1778039448000,-500.0,0.00036174,3]
[421678029,1778039448000,-500.0,0.00036174,3]
[421678033,1778039448000,-155.0,0.00036265,30]
[421678043,1778039448000,-1000.0,0.00036438,5]
[421678022,1778039448000,-160.0,0.00036,120]
[421678034,1778039448000,-585.0,0.00036265,30]
[421678099,1778039449000,-1000.0,0.000378,7]
[421678107,1778039449000,-1000.0,0.000378,7]
[421678106,1778039449000,-1000.0,0.000378,7]
[421678104,1778039449000,-1000.0,0.000378,7]
[421678117,1778039449000,-1000.0,0.000378,7]
[421678102,1778039449000,-1000.0,0.000378,7]
[421678101,1778039449000,-1000.0,0.000378,7]
[421678103,1778039449000,-1000.0,0.000378,7]
[421678105,1778039449000,-1000.0,0.000378,7]
[421678097,1778039449000,-1000.0,0.000378,7]
[421678109,1778039449000,-1000.0,0.000378,7]
[421678096,1778039449000,-1000.0,0.000378,7]
[421678110,1778039449000,-1000.0,0.000378,7]
[421678125,1778039449000,-1000.0,0.000378,7]
[421678112,1778039449000,-1000.0,0.000378,7]
[421678115,1778039449000,-1000.0,0.000378,7]
[421678111,1778039449000,-1000.0,0.000378,7]
[421678114,1778039449000,-1000.0,0.000378,7]
[421678113,1778039449000,-1000.0,0.000378,7]
[421678116,1778039449000,-1000.0,0.000378,7]
[421678118,1778039449000,-1000.0,0.000378,7]
[421678120,1778039449000,-1000.0,0.000378,7]
[421678119,1778039449000,-1000.0,0.000378,7]
[421678122,1778039449000,-1000.0,0.000378,7]
[421678126,1778039449000,-1000.0,0.000378,7]
[421678124,1778039449000,-1000.0,0.000378,7]
[421678098,1778039449000,-1000.0,0.000378,7]
[421678108,1778039449000,-1000.0,0.000378,7]
[421678100,1778039449000,-1000.0,0.000378,7]
[421678066,1778039449000,-168.12682925,0.00037,2]
[421678094,1778039449000,-1747.64701049,0.00037746,2]
[421678068,1778039449000,-4500.0,0.00037,2]
[421678067,1778039449000,-1005.5296526,0.00037,2]
[421678065,1778039449000,-1000.0,0.00036965,2]
[421678069,1778039449000,-162.55277151,0.00037,3]
[421678070,1778039449000,-157.0,0.00037005,3]
[421678072,1778039449000,-171.82,0.000371,30]
[421678074,1778039449000,-189.47926864,0.000372,120]
[421678073,1778039449000,-78194.19,0.000372,7]
[421678080,1778039449000,-177.0,0.00037278,30]
[421678076,1778039449000,-305.09424946,0.0003726,5]
[421678078,1778039449000,-585.0,0.00037265,30]
[421678077,1778039449000,-155.0,0.00037265,30]
[421678079,1778039449000,-362.0,0.00037278,30]
[421678075,1778039449000,-504.0,0.00037243,13]
[421678083,1778039449000,-1073.0,0.00037279,30]
[421678081,1778039449000,-277.0,0.00037278,30]
[421678084,1778039449000,-347.0,0.00037279,30]
[421678085,1778039449000,-153.0,0.00037279,30]
[421678082,1778039449000,-359.0,0.00037278,30]
[421678092,1778039449000,-307.0,0.000376,2]
[421678089,1778039449000,-1000.0,0.000376,2]
[421678091,1778039449000,-882.0,0.000376,2]
[421678086,1778039449000,-483.0,0.00037279,30]
[421678088,1778039449000,-156.90090257,0.00037453,120]
[421678087,1778039449000,-4000.0,0.00037288,60]
[421678090,1778039449000,-314.0,0.000376,2]
[421678093,1778039449000,-150.0,0.00037694,2]
[421678095,1778039449000,-1000.0,0.000378,7]
[421678121,1778039449000,-1000.0,0.000378,7]
[421678071,1778039449000,-1150.74582531,0.000371,120]
[421678129,1778039449000,-1000.0,0.000378,7]
[421678165,1778039449000,-1000.0,0.000378,7]
[421678157,1778039449000,-1000.0,0.000378,7]
[421678158,1778039449000,-1000.0,0.000378,7]
[421678162,1778039449000,-1000.0,0.000378,7]
[421678163,1778039449000,-1000.0,0.000378,7]
[421678164,1778039449000,-1000.0,0.000378,7]
[421678160,1778039449000,-1000.0,0.000378,7]
[421678168,1778039449000,-1000.0,0.000378,7]
[421678169,1778039449000,-763.0,0.000378,7]
[421678167,1778039449000,-1000.0,0.000378,7]
[421678172,1778039449000,-1000.0,0.000378,7]
[421678174,1778039449000,-1000.0,0.000378,7]
[421678171,1778039449000,-1000.0,0.000378,7]
[421678170,1778039449000,-1000.0,0.000378,7]
[421678173,1778039449000,-1000.0,0.000378,7]
[421678178,1778039449000,-1000.0,0.000378,7]
[421678175,1778039449000,-1000.0,0.000378,7]
[421678176,1778039449000,-1000.0,0.000378,7]
[421678177,1778039449000,-1000.0,0.000378,7]
[421678180,1778039449000,-1000.0,0.000378,7]
[421678183,1778039449000,-1000.0,0.000378,7]
[421678186,1778039449000,-5499.609,0.00037908,50]
[421678184,1778039449000,-1500.0,0.00037808,5]
[421678182,1778039449000,-1000.0,0.000378,7]
[421678181,1778039449000,-1000.0,0.000378,7]
[421678185,1778039449000,-20207.64480729,0.0003789,7]
[421678123,1778039449000,-1000.0,0.000378,7]
[421678161,1778039449000,-1000.0,0.000378,7]
[421678159,1778039449000,-1000.0,0.000378,7]
[421678179,1778039449000,-1000.0,0.000378,7]
[421678166,1778039449000,-1000.0,0.000378,7]
[421678155,1778039449000,-1000.0,0.000378,7]
[421678127,1778039449000,-1000.0,0.000378,7]
[421678128,1778039449000,-1000.0,0.000378,7]
[421678132,1778039449000,-1000.0,0.000378,7]
[421678142,1778039449000,-1000.0,0.000378,7]
[421678131,1778039449000,-1000.0,0.000378,7]
[421678134,1778039449000,-1000.0,0.000378,7]
[421678133,1778039449000,-1000.0,0.000378,7]
[421678138,1778039449000,-1000.0,0.000378,7]
[421678135,1778039449000,-1000.0,0.000378,7]
[421678137,1778039449000,-1000.0,0.000378,7]
[421678141,1778039449000,-1000.0,0.000378,7]
[421678139,1778039449000,-1000.0,0.000378,7]
[421678136,1778039449000,-1000.0,0.000378,7]
[421678130,1778039449000,-1000.0,0.000378,7]
[421678143,1778039449000,-1000.0,0.000378,7]
[421678140,1778039449000,-1000.0,0.000378,7]
[421678151,1778039449000,-1000.0,0.000378,7]
[421678150,1778039449000,-1000.0,0.000378,7]
[421678148,1778039449000,-1000.0,0.000378,7]
[421678153,1778039449000,-1000.0,0.000378,7]
[421678149,1778039449000,-1000.0,0.000378,7]
[421678144,1778039449000,-1000.0,0.000378,7]
[421678145,1778039449000,-1000.0,0.000378,7]
[421678152,1778039449000,-1000.0,0.000378,7]
[421678146,1778039449000,-1000.0,0.000378,7]
[421678156,1778039449000,-1000.0,0.000378,7]
[421678154,1778039449000,-1000.0,0.000378,7]
[421678147,1778039449000,-1000.0,0.000378,7]
[421678223,1778039450000,-300.0,0.00038287,2]
[421678217,1778039450000,-483.27319916,0.00038287,2]
[421678221,1778039450000,-300.0,0.00038287,2]
[421678219,1778039450000,-300.0,0.00038287,2]
[421678220,1778039450000,-300.0,0.00038287,2]
[421678222,1778039450000,-300.0,0.00038287,2]
[421678218,1778039450000,-309.32134718,0.00038287,2]
[421678226,1778039450000,-300.0,0.00038287,2]
[421678224,1778039450000,-300.0,0.00038287,2]
[421678216,1778039450000,-300.0,0.00038287,2]
[421678225,1778039450000,-1092.83356842,0.00038287,2]
[421678234,1778039450000,-300.0,0.00038287,2]
[421678227,1778039450000,-300.0,0.00038287,2]
[421678230,1778039450000,-300.0,0.00038287,2]
[421678233,1778039450000,-300.0,0.00038287,2]
[421678229,1778039450000,-300.0,0.00038287,2]
[421678231,1778039450000,-300.0,0.00038287,2]
[421678232,1778039450000,-300.0,0.00038287,2]
[421678236,1778039450000,-300.0,0.00038287,2]
[421678235,1778039450000,-300.0,0.00038287,2]
[421678237,1778039450000,-300.0,0.00038287,2]
[421678239,1778039450000,-491.85958444,0.00038287,2]
[421678215,1778039450000,-250.0,0.00038277,7]
[421678238,1778039450000,-300.0,0.00038287,2]
[421678228,1778039450000,-300.0,0.00038287,2]
[421678208,1778039450000,-156.43,0.00038248,2]
[421678196,1778039450000,-6498.67831297,0.00038236,2]
[421678211,1778039450000,-156.41,0.00038248,2]
[421678243,1778039450000,-300.0,0.00038287,2]
[421678190,1778039450000,-538.9366409,0.000381,33]
[421678189,1778039450000,-504.0,0.00038021,13]
[421678187,1778039450000,-597.899,0.00037908,50]
[421678188,1778039450000,-167.0,0.00038,120]
[421678191,1778039450000,-1965.0,0.00038125,30]
[421678194,1778039450000,-1150.74582531,0.000382,120]
[421678202,1778039450000,-156.41,0.00038246,2]
[421678195,1778039450000,-2023.0,0.000382,7]
[421678192,1778039450000,-156.90090257,0.00038169,120]
[421678193,1778039450000,-539.0,0.00038192,2]
[421678197,1778039450000,-156.41,0.00038244,2]
[421678200,1778039450000,-156.41,0.00038244,2]
[421678201,1778039450000,-156.41,0.00038244,2]
[421678198,1778039450000,-156.41,0.00038244,2]
[421678199,1778039450000,-156.41,0.00038244,2]
[421678204,1778039450000,-156.41,0.00038246,2]
[421678203,1778039450000,-156.41,0.00038246,2]
[421678214,1778039450000,-250.0,0.00038277,7]
[421678207,1778039450000,-310.0,0.00038247,49]
[421678206,1778039450000,-156.41,0.00038246,2]
[421678209,1778039450000,-156.41,0.00038248,2]
[421678205,1778039450000,-156.41,0.00038246,2]
[421678213,1778039450000,-250.0,0.00038277,7]
[421678212,1778039450000,-156.41,0.00038248,2]
[421678210,1778039450000,-156.41,0.00038248,2]
[421678241,1778039450000,-300.0,0.00038287,2]
[421678240,1778039450000,-300.0,0.00038287,2]
[421678242,1778039450000,-300.0,0.00038287,2]
[421678271,1778039450000,-300.0,0.00038287,2]
[421678277,1778039450000,-309.07064608,0.00038287,2]
[421678272,1778039450000,-343.40295571,0.00038287,2]
[421678276,1778039450000,-1145.24599896,0.00038287,2]
[421678278,1778039450000,-300.0,0.00038287,2]
[421678279,1778039450000,-862.96230178,0.00038287,2]
[421678268,1778039450000,-300.0,0.00038287,2]
[421678280,1778039450000,-300.0,0.00038287,2]
[421678282,1778039450000,-300.0,0.00038287,2]
[421678284,1778039450000,-300.0,0.00038287,2]
[421678283,1778039450000,-300.0,0.00038287,2]
[421678285,1778039450000,-310.3725982,0.00038287,2]
[421678291,1778039450000,-300.0,0.00038287,2]
[421678292,1778039450000,-451.13853711,0.00038287,2]
[421678286,1778039450000,-300.0,0.00038287,2]
[421678290,1778039450000,-300.0,0.00038287,2]
[421678288,1778039450000,-463.08064867,0.00038287,2]
[421678293,1778039450000,-300.0,0.00038287,2]
[421678287,1778039450000,-300.0,0.00038287,2]
[421678289,1778039450000,-481.18706949,0.00038287,2]
[421678295,1778039450000,-300.0,0.00038287,2]
[421678294,1778039450000,-300.0,0.00038287,2]
[421678296,1778039450000,-300.0,0.00038287,2]
[421678297,1778039450000,-300.0,0.00038287,2]
[421678298,1778039450000,-300.0,0.00038287,2]
[421678273,1778039450000,-300.0,0.00038287,2]
[421678274,1778039450000,-300.0,0.00038287,2]
[421678281,1778039450000,-1805.51200897,0.00038287,2]
[421678270,1778039450000,-1793.38851355,0.00038287,2]
[421678275,1778039450000,-300.0,0.00038287,2]
[421678253,1778039450000,-300.0,0.00038287,2]
[421678244,1778039450000,-603.45144378,0.00038287,2]
[421678254,1778039450000,-312.45081026,0.00038287,2]
[421678246,1778039450000,-300.0,0.00038287,2]
[421678248,1778039450000,-476.87909536,0.00038287,2]
[421678247,1778039450000,-300.0,0.00038287,2]
[421678249,1778039450000,-526.86051061,0.00038287,2]
[421678251,1778039450000,-1065.13491717,0.00038287,2]
[421678252,1778039450000,-891.9241332,0.00038287,2]
[421678250,1778039450000,-300.0,0.00038287,2]
[421678257,1778039450000,-300.0,0.00038287,2]
[421678256,1778039450000,-724.83131769,0.00038287,2]
[421678245,1778039450000,-300.0,0.00038287,2]
[421678255,1778039450000,-309.13065885,0.00038287,2]
[421678267,1778039450000,-300.0,0.00038287,2]
[421678264,1778039450000,-300.0,0.00038287,2]
[421678259,1778039450000,-300.0,0.00038287,2]
[421678261,1778039450000,-300.06118393,0.00038287,2]
[421678262,1778039450000,-300.0,0.00038287,2]
[421678269,1778039450000,-852.7601399,0.00038287,2]
[421678258,1778039450000,-301.2859328,0.00038287,2]
[421678260,1778039450000,-300.0,0.00038287,2]
[421678266,1778039450000,-474.98520692,0.00038287,2]
[421678265,1778039450000,-300.0,0.00038287,2]
[421678263,1778039450000,-300.0,0.00038287,2]
[421678340,1778039451000,-300.0,0.00038287,2]
[421678331,1778039451000,-526.86051061,0.00038287,2]
[421678337,1778039451000,-724.83131769,0.00038287,2]
[421678342,1778039451000,-300.06118393,0.00038287,2]
[421678335,1778039451000,-300.0,0.00038287,2]
[421678333,1778039451000,-1065.13491717,0.00038287,2]
[421678339,1778039451000,-300.0,0.00038287,2]
[421678334,1778039451000,-891.9241332,0.00038287,2]
[421678332,1778039451000,-300.0,0.00038287,2]
[421678341,1778039451000,-300.0,0.00038287,2]
[421678330,1778039451000,-300.0,0.00038287,2]
[421678336,1778039451000,-309.13065885,0.00038287,2]
[421678338,1778039451000,-301.2859328,0.00038287,2]
[421678346,1778039451000,-300.0,0.00038287,2]
[421678355,1778039451000,-300.0,0.00038287,2]
[421678347,1778039451000,-474.98520692,0.00038287,2]
[421678343,1778039451000,-300.0,0.00038287,2]
[421678354,1778039451000,-300.0,0.00038287,2]
[421678326,1778039451000,-300.0,0.00038287,2]
[421678351,1778039451000,-1793.38851355,0.00038287,2]
[421678349,1778039451000,-852.7601399,0.00038287,2]
[421678350,1778039451000,-300.0,0.00038287,2]
[421678345,1778039451000,-300.0,0.00038287,2]
[421678348,1778039451000,-300.0,0.00038287,2]
[421678352,1778039451000,-300.0,0.00038287,2]
[421678353,1778039451000,-343.40295571,0.00038287,2]
[421678356,1778039451000,-300.0,0.00038287,2]
[421678344,1778039451000,-300.0,0.00038287,2]
[421678324,1778039451000,-300.0,0.00038287,2]
[421678301,1778039451000,-300.0,0.00038287,2]
[421678321,1778039451000,-491.85958444,0.00038287,2]
[421678299,1778039451000,-483.27319916,0.00038287,2]
[421678357,1778039451000,-1145.24599896,0.00038287,2]
[421678300,1778039451000,-309.32134718,0.00038287,2]
[421678302,1778039451000,-300.0,0.00038287,2]
[421678303,1778039451000,-300.0,0.00038287,2]
[421678304,1778039451000,-300.0,0.00038287,2]
[421678305,1778039451000,-300.0,0.00038287,2]
[421678306,1778039451000,-300.0,0.00038287,2]
[421678307,1778039451000,-1092.83356842,0.00038287,2]
[421678312,1778039451000,-300.0,0.00038287,2]
[421678316,1778039451000,-300.0,0.00038287,2]
[421678311,1778039451000,-300.0,0.00038287,2]
[421678310,1778039451000,-300.0,0.00038287,2]
[421678313,1778039451000,-300.0,0.00038287,2]
[421678309,1778039451000,-300.0,0.00038287,2]
[421678317,1778039451000,-300.0,0.00038287,2]
[421678315,1778039451000,-300.0,0.00038287,2]
[421678314,1778039451000,-300.0,0.00038287,2]
[421678308,1778039451000,-300.0,0.00038287,2]
[421678319,1778039451000,-300.0,0.00038287,2]
[421678327,1778039451000,-603.45144378,0.00038287,2]
[421678328,1778039451000,-300.0,0.00038287,2]
[421678329,1778039451000,-300.0,0.00038287,2]
[421678318,1778039451000,-300.0,0.00038287,2]
[421678320,1778039451000,-300.0,0.00038287,2]
[421678322,1778039451000,-300.0,0.00038287,2]
[421678325,1778039451000,-300.0,0.00038287,2]
[421678323,1778039451000,-300.0,0.00038287,2]
[421678363,1778039451000,-300.0,0.00038287,2]
[421678417,1778039451000,-2208.0803,0.0003907,2]
[421678358,1778039451000,-309.07064608,0.00038287,2]
[421678388,1778039451000,-500.0,0.00038288,120]
[421678394,1778039451000,-2208.0803,0.00038351,2]
[421678393,1778039451000,-707.1895,0.00038346,120]
[421678395,1778039451000,-150.5,0.00038351,2]
[421678396,1778039451000,-150.0,0.00038356,120]
[421678404,1778039451000,-3536.0,0.00038632,2]
[421678397,1778039451000,-159.08,0.00038356,30]
[421678398,1778039451000,-203.0,0.00038356,2]
[421678400,1778039451000,-4000.0,0.00038438,60]
[421678401,1778039451000,-78194.19,0.000385,7]
[421678402,1778039451000,-2208.0803,0.00038591,2]
[421678399,1778039451000,-228.47574567,0.0003839,2]
[421678403,1778039451000,-624.0,0.00038632,2]
[421678405,1778039451000,-1352.0,0.00038632,2]
[421678412,1778039451000,-156.90090257,0.00038885,120]
[421678406,1778039451000,-925.0,0.00038632,2]
[421678407,1778039451000,-1268.0,0.00038632,2]
[421678409,1778039451000,-3625.0,0.00038632,2]
[421678414,1778039451000,-451.94890779,0.00039,120]
[421678411,1778039451000,-2208.0803,0.00038831,2]
[421678415,1778039451000,-171.82,0.00039,30]
[421678413,1778039451000,-500.16742932,0.00038904,5]
[421678408,1778039451000,-417.0,0.00038632,2]
[421678416,1778039451000,-167.11,0.00039,120]
[421678364,1778039451000,-300.0,0.00038287,2]
[421678418,1778039451000,-2000.0,0.000393,7]
[421678419,1778039451000,-2208.0803,0.0003931,2]
[421678391,1778039451000,-707.3915,0.00038346,120]
[421678390,1778039451000,-543.0073538,0.00038288,120]
[421678410,1778039451000,-504.0,0.00038798,14]
[421678385,1778039451000,-255.4259681,0.00038288,120]
[421678384,1778039451000,-378.2662136,0.00038288,120]
[421678359,1778039451000,-300.0,0.00038287,2]
[421678367,1778039451000,-300.0,0.00038287,2]
[421678366,1778039451000,-300.0,0.00038287,2]
[421678365,1778039451000,-310.3725982,0.00038287,2]
[421678361,1778039451000,-300.0,0.00038287,2]
[421678362,1778039451000,-300.0,0.00038287,2]
[421678369,1778039451000,-300.0,0.00038287,2]
[421678380,1778039451000,-309.32134718,0.00038287,2]
[421678374,1778039451000,-300.0,0.00038287,2]
[421678372,1778039451000,-451.13853711,0.00038287,2]
[421678370,1778039451000,-481.18706949,0.00038287,2]
[421678368,1778039451000,-463.08064867,0.00038287,2]
[421678360,1778039451000,-862.96230178,0.00038287,2]
[421678378,1778039451000,-300.0,0.00038287,2]
[421678376,1778039451000,-300.0,0.00038287,2]
[421678389,1778039451000,-602.1874311,0.00038288,120]
[421678387,1778039451000,-500.0,0.00038288,120]
[421678383,1778039451000,-159.2064289,0.00038288,120]
[421678392,1778039451000,-707.3915,0.00038346,120]
[421678381,1778039451000,-186.745947,0.00038288,120]
[421678386,1778039451000,-158.4902185,0.00038288,120]
[421678371,1778039451000,-300.0,0.00038287,2]
[421678377,1778039451000,-300.0,0.00038287,2]
[421678379,1778039451000,-483.27319916,0.00038287,2]
[421678373,1778039451000,-300.0,0.00038287,2]
[421678375,1778039451000,-300.0,0.00038287,2]
[421678382,1778039451000,-210.1366791,0.00038288,120]
[421678463,1778039452000,-500.0,0.00039726,15]
[421678464,1778039452000,-500.0,0.00039726,15]
[421678458,1778039452000,-150.0,0.00039579,2]
[421678453,1778039452000,-188.433504,0.000395,30]
[421678457,1778039452000,-504.0,0.00039575,15]
[421678454,1778039452000,-314.097762,0.000395,30]
[421678455,1778039452000,-151.0,0.000395,30]
[421678452,1778039452000,-314.097762,0.000395,30]
[421678459,1778039452000,-156.90090257,0.00039601,120]
[421678456,1778039452000,-2208.0803,0.0003955,2]
[421678449,1778039452000,-151.0,0.000395,30]
[421678467,1778039452000,-500.0,0.00039726,15]
[421678461,1778039452000,-150.0,0.00039726,120]
[421678462,1778039452000,-500.0,0.00039726,15]
[421678466,1778039452000,-500.0,0.00039726,15]
[421678465,1778039452000,-500.0,0.00039726,15]
[421678468,1778039452000,-500.0,0.00039726,15]
[421678476,1778039452000,-500.0,0.00039726,15]
[421678469,1778039452000,-500.0,0.00039726,15]
[421678470,1778039452000,-500.0,0.00039726,15]
[421678471,1778039452000,-500.0,0.00039726,15]
[421678472,1778039452000,-500.0,0.00039726,15]
[421678474,1778039452000,-500.0,0.00039726,15]
[421678448,1778039452000,-314.097762,0.000395,30]
[421678460,1778039452000,-4000.0,0.00039616,60]
[421678446,1778039452000,-479.870062,0.000395,30]
[421678439,1778039452000,-151.0,0.000395,30]
[421678447,1778039452000,-479.870062,0.000395,30]
[421678426,1778039452000,-238156.96341543,0.000395,2]
[421678424,1778039452000,-151.0,0.00039497,14]
[421678427,1778039452000,-262.686372,0.000395,30]
[421678422,1778039452000,-152.0,0.00039357,5]
[421678423,1778039452000,-1150.74582531,0.000394,120]
[421678425,1778039452000,-151.0,0.00039497,14]
[421678428,1778039452000,-262.686372,0.000395,30]
[421678430,1778039452000,-262.686372,0.000395,30]
[421678431,1778039452000,-254.415554,0.000395,30]
[421678440,1778039452000,-723.635431,0.000395,30]
[421678429,1778039452000,-262.686372,0.000395,30]
[421678450,1778039452000,-314.097762,0.000395,30]
[421678436,1778039452000,-151.0,0.000395,30]
[421678433,1778039452000,-723.635431,0.000395,30]
[421678438,1778039452000,-254.415554,0.000395,30]
[421678437,1778039452000,-723.635431,0.000395,30]